fUST/lending_fUST_20250305
["ID","MTS","AMOUNT","RATE_DAILY","PERIOD"]
[355456567,1741183824940,500.0,0.00049165,30]
[355456618,1741183832376,-309.042832,0.000266,2]
[355456619,1741183832386,-500.0,0.00035315,44]
[355456621,1741183832396,-169.533187,0.00035383,120]
[355456622,1741183832406,-500.0,0.0003589,2]
[355456623,1741183832416,-300.0,0.00035999,2]
[355456624,1741183832425,-18487.18911023,0.00036,2]
[355456625,1741183832435,-416.66666667,0.00036961,2]
[355456626,1741183832444,-368.80057352,0.00037054,103]
[355456627,1741183832454,-233.4503899,0.0003749,4]
[355456628,1741183832463,-1197.25500723,0.00037629,2]
[355456629,1741183832473,-235.05403132,0.00037855,2]
[355456630,1741183832482,-817.49171399,0.00037892,3]
[355456631,1741183832491,-496.39172458,0.000379,8]
[355456632,1741183832500,-637.18,0.00037946,3]
[355456633,1741183832510,-637.17,0.00037946,3]
[355456634,1741183832520,-500.0,0.00037955,2]
[355456635,1741183832531,-500.0,0.00037955,2]
[355456636,1741183832542,-500.0,0.00037955,2]
[355456637,1741183832552,-500.0,0.00037955,2]
[355456638,1741183832562,-500.0,0.00037955,2]
[355456639,1741183832571,-500.0,0.00037955,2]
[355456640,1741183832581,-500.0,0.00037955,2]
[355456641,1741183832591,-500.0,0.00037955,2]
[355456642,1741183832601,-500.0,0.00037955,2]
[355456643,1741183832611,-500.0,0.00037955,2]
[355456644,1741183832620,-500.0,0.00037955,2]
[355456645,1741183832631,-500.0,0.00037955,2]
[355456647,1741183832640,-500.0,0.00037955,2]
[355456649,1741183832651,-500.0,0.00037955,2]
[355456651,1741183832661,-500.0,0.00037955,2]
[355456653,1741183832671,-500.0,0.00037955,2]
[355456654,1741183832680,-530.47497188,0.00037955,2]
[355456655,1741183832690,-500.0,0.00037955,2]
[355456656,1741183832699,-3563.54019482,0.00037956,2]
[355456657,1741183832718,-1605.45844035,0.00037956,2]
[355456658,1741183835652,500.0,0.00049165,30]
[355456681,1741183838297,-390.35459814,0.00037956,2]
[355456714,1741183840581,-499.58105022,0.00037956,2]
[355456991,1741183843472,-432.73892352,0.00037956,2]
[355457266,1741183846338,500.0,0.00049165,30]
[355457268,1741183846352,-162597.15158826,0.00037956,2]
[355457669,1741183851533,788.20460708,0.00049165,30]
[355458051,1741183857045,500.0,0.00049165,30]
[355458829,1741183867712,500.0,0.00049165,30]
[355458830,1741183878363,362.27093893,0.00049165,30]
[355458831,1741183888948,500.0,0.00049165,30]
[355458833,1741183935012,300.0,0.00049165,60]
[355458834,1741183935281,300.0,0.00049165,60]
[355458835,1741183935790,400.0,0.00049165,60]
[355458837,1741183967926,2044.7,0.00049165,30]
[355458838,1741184008601,30000.0,0.00049165,30]
[355458839,1741184072283,10000.0,0.00049172,30]
[355458841,1741184085175,10000.0,0.00049172,30]
[355458842,1741184128766,10000.0,0.00049172,30]
[355458843,1741184140908,10000.0,0.00049172,30]
[355458844,1741184147299,10000.0,0.00049172,30]
[355458845,1741184152685,10000.0,0.00049172,30]
[355458846,1741184161165,10000.0,0.00049172,30]
[355458847,1741184183719,10000.0,0.00049172,30]
[355458848,1741184191170,5000.0,0.00049172,120]
[355458849,1741184191293,10000.0,0.00049172,30]
[355458850,1741184212999,1600.38429627,0.00049172,120]
[355458851,1741184220178,7237.0,0.00049172,30]
[355458852,1741184234637,300.0,0.00049172,60]
[355458853,1741184235261,300.0,0.00049172,60]
[355458854,1741184235673,400.0,0.00049172,60]
[355458855,1741184244716,250.5,0.00049172,30]
[355458856,1741184245395,335.5,0.00049172,30]
[355458862,1741184863904,183.03721768,0.00049175,30]
[355458863,1741184868261,1200.73289609,0.00049175,120]
[355458864,1741184882221,2915.81371138,0.00049175,30]
[355458866,1741184886609,1610.10267461,0.00049175,32]
[355458867,1741184902011,1961.2197575,0.00049175,120]
[355458868,1741184902432,900.92400646,0.00049175,120]
[355458869,1741184905618,549.88610775,0.00049175,120]
[355458870,1741184907095,1905.59345014,0.00049175,30]
[355458872,1741184910467,177.0384523,0.00049175,120]
[355458880,1741184910875,562.01154995,0.0003,30]
[355458881,1741184911225,1863.98770373,0.00049175,120]
[355458882,1741184911799,677.06546291,0.00049175,120]
[355458883,1741184913119,240.82074905,0.00049175,120]
[355458884,1741184914905,1141.01616919,0.00049175,120]
[355458885,1741184915433,1521.09554958,0.00049175,90]
[355458886,1741184915491,931.91629211,0.00049175,120]
[355458887,1741184915627,1968.295599,0.00049175,120]
[355458888,1741184915833,2000.0,0.00049175,120]
[355458889,1741184916445,1080.03413337,0.00049175,120]
[355458890,1741184916885,248.17537512,0.00049175,30]
[355458891,1741184917023,934.4441219,0.00049175,120]
[355458892,1741184917097,847.47059319,0.00049175,120]
[355458893,1741184917581,12018.37538014,0.000145,2]
[355458894,1741184917609,29933.71145201,0.000145,2]
[355458895,1741184917657,1588.52214141,0.00049175,120]
[355458896,1741184917708,1035.74811074,0.00049175,120]
[355458897,1741184917971,2536.66951768,0.00049175,120]
[355458898,1741184919611,991.03501466,0.00049175,120]
[355458899,1741184919905,1682.75141068,0.00049175,120]
[355458900,1741184920091,438.95763138,0.00049175,120]
[355458901,1741184920392,1830.31628058,0.00049175,120]
[355458902,1741184920421,300.0,0.0001,2]
[355458903,1741184920661,1728.59967195,0.00049175,120]
[355458904,1741184921096,665.69082136,0.00049175,120]
[355458905,1741184921353,21000.00000066,0.00026,30]
[355458906,1741184921427,416.22328999,0.00049175,120]
[355458907,1741184921551,212.37914795,0.00049175,120]
[355458908,1741184921813,419.58778495,0.00049175,120]
[355458909,1741184922205,15935.7658871,0.000135,2]
[355458910,1741184922339,225.64748565,0.00049175,120]
[355458911,1741184922933,311.79073725,0.00049175,120]
[355458912,1741184923013,4611.36496058,0.00049175,120]
[355458913,1741184923145,200.42509499,0.00049175,120]
[355458914,1741184923354,3196.32600296,0.00049175,30]
[355458915,1741184923445,2000.0,0.00049175,60]
[355458916,1741184923907,604.99619525,0.00049175,120]
[355458917,1741184924069,2009.74376515,0.00049175,120]
[355458918,1741184924158,1833.29185136,0.00049175,120]
[355458926,1741184967277,3000.0,0.00049132,30]
[355458927,1741184968097,-346.9898646,0.000325,30]
[355458930,1741184977005,3000.0,0.00049132,120]
[355458934,1741185009617,2000.0,0.00049132,30]
[355458967,1741185032567,-797.54934986,0.000325,30]
[355458969,1741185032576,-184.0,0.00033,2]
[355458971,1741185032586,-479.84533378,0.000349,7]
[355458973,1741185032596,-18839.7811339,0.00034981,2]
[355458975,1741185032605,-462.512384,0.00034985,120]
[355458977,1741185032615,-166.855685,0.00035645,2]
[355458979,1741185032624,-500.0,0.0003589,2]
[355458981,1741185032633,-416.66666667,0.00036946,2]
[355458983,1741185032643,-175.0877924,0.00037196,4]
[355458985,1741185032653,-205.67227744,0.000379,2]
[355458987,1741185032663,-200.0,0.0003799,2]
[355458989,1741185032674,-3911.11537699,0.0003799,2]
[355458992,1741185032684,-753.83727691,0.00038,7]
[355459004,1741185032887,-892.11799996,0.00038,7]
[355459029,1741185038566,-262.86423074,0.00038,7]
[355459112,1741185043592,-113.71350029,0.00038,7]
[355459113,1741185043602,-1199.97215486,0.00038,2]
[355459114,1741185043652,30000.0,0.00049132,30]
[355459191,1741185170990,1000.0,0.00049132,30]
[355459194,1741185290598,1500.0,0.00049124,120]
[355459196,1741185498816,150.0,0.00049124,30]
[355459197,1741185540296,1830.14099494,0.00049124,30]
[355459200,1741185841595,3633.74327508,0.0004913,30]
[355459201,1741185862653,10212.20689486,0.0004913,31]
[355459210,1741186154115,-521.09555058,0.00019022,2]
[355459211,1741186154136,-301.60803018,0.00028,3]
[355459256,1741186233160,-115.05863649,0.00028,3]
[355459258,1741186233173,-500.0,0.00033,10]
[355459260,1741186233183,-500.0,0.00033,10]
[355459262,1741186233193,-400.0,0.00035511,2]
[355459264,1741186233203,-346.884288,0.00035512,120]
[355459266,1741186233213,-2132.56447328,0.00035696,2]
[355459382,1741186238718,-1250.0,0.00035696,2]
[355459383,1741186238730,-310.10909478,0.00035696,2]
[355459384,1741186238742,-1094.47035166,0.00035696,2]
[355459418,1741186240990,-2032.72022758,0.00035696,2]
[355459420,1741186241000,-44.92714315,0.0003589,2]
[355459431,1741186241104,-455.07285685,0.0003589,2]
[355459434,1741186241114,-334.99385427,0.000362,98]
[355459437,1741186241123,-203.2352261,0.00036458,2]
[355459439,1741186241132,-184.174304,0.00036477,2]
[355459441,1741186241142,-2.0803573,0.00036523,2]
[355459512,1741186243958,-728.9723829,0.00036523,2]
[355459514,1741186243968,-482.16827815,0.000369,7]
[355459516,1741186243978,-416.66666667,0.00037029,2]
[355459518,1741186243987,-173.5387031,0.0003724,4]
[355459520,1741186243997,-179.96324276,0.000379,2]
[355459522,1741186244006,-150.0,0.00037904,2]
[355459524,1741186244015,-539.0,0.00037904,2]
[355459526,1741186244024,-1955.0,0.00037904,2]
[355459528,1741186244033,-2278.0,0.00037904,2]
[355459530,1741186244043,-2123.58979168,0.00038,2]
[355459532,1741186244052,-2000.0,0.00038,15]
[355459534,1741186244062,-2000.0,0.00038,15]
[355459536,1741186244072,-850.0,0.00038,3]
[355459538,1741186244082,-4078.68,0.00038,30]
[355459540,1741186244091,-313.88,0.00038,7]
[355459542,1741186244101,-560.0,0.00038055,2]
[355459544,1741186244110,-1209.88593231,0.00038155,5]
[355459547,1741186244119,-500.0,0.00038155,15]
[355459550,1741186244129,-545.58782396,0.00038155,15]
[355459553,1741186244139,-712.62648582,0.00038155,2]
[355459556,1741186244148,-712.62648582,0.00038155,2]
[355459559,1741186244157,-372.30425691,0.00038155,15]
[355459562,1741186244169,-127.69574309,0.00038155,15]
[355459565,1741186244180,-712.62648582,0.00038155,2]
[355459568,1741186244189,-712.62648582,0.00038155,2]
[355459571,1741186244199,-712.62648582,0.00038155,2]
[355459574,1741186244208,-712.62648582,0.00038155,2]
[355459577,1741186244218,-712.62648582,0.00038155,2]
[355459580,1741186244227,-239.61612689,0.00038155,2]
[355459584,1741186244239,-473.01035893,0.00038155,2]
[355459587,1741186244248,-712.62648582,0.00038155,2]
[355459589,1741186244258,-712.62648582,0.00038155,2]
[355459591,1741186244267,-712.62648582,0.00038155,2]
[355459593,1741186244276,-712.62648582,0.00038155,2]
[355459595,1741186244286,-712.62648582,0.00038155,2]
[355459597,1741186244295,-712.62648582,0.00038155,2]
[355459599,1741186244305,-712.62648582,0.00038155,2]
[355459601,1741186244314,-712.62648582,0.00038155,2]
[355459603,1741186244323,-712.62648582,0.00038155,2]
[355459605,1741186244332,-712.62648582,0.00038155,2]
[355459607,1741186244342,-712.62648582,0.00038155,2]
[355459609,1741186244352,-712.62648582,0.00038155,2]
[355459612,1741186244362,-712.62648582,0.00038155,2]
[355459614,1741186244372,-712.62648582,0.00038155,2]
[355459616,1741186244382,-712.62648582,0.00038155,2]
[355459618,1741186244391,-712.62648582,0.00038155,2]
[355459620,1741186244401,-712.62648582,0.00038155,2]
[355459622,1741186244410,-712.62648582,0.00038155,2]
[355459624,1741186244419,-712.62648582,0.00038155,2]
[355459625,1741186244429,-712.62648582,0.00038155,2]
[355459628,1741186244439,-712.62648582,0.00038155,2]
[355459630,1741186244448,-712.62648582,0.00038155,2]
[355459632,1741186244458,-712.62648582,0.00038155,2]
[355459634,1741186244467,-712.62648582,0.00038155,2]
[355459636,1741186244477,-712.62648582,0.00038155,2]
[355459638,1741186244486,-712.62648582,0.00038155,2]
[355459640,1741186244496,-712.62648582,0.00038155,2]
[355459642,1741186244505,-712.62648582,0.00038155,2]
[355459644,1741186244514,-712.62648582,0.00038155,2]
[355459646,1741186244524,-712.62648582,0.00038155,2]
[355459648,1741186244533,-712.62648582,0.00038155,2]
[355459650,1741186244542,-712.62648582,0.00038155,2]
[355459652,1741186244551,-712.62648582,0.00038155,2]
[355459654,1741186244561,-712.62648582,0.00038155,2]
[355459656,1741186244570,-712.62648582,0.00038155,2]
[355459657,1741186244580,-712.62648582,0.00038155,2]
[355459659,1741186244590,-712.62648582,0.00038155,2]
[355459661,1741186244601,-712.62648582,0.00038155,2]
[355459663,1741186244612,-712.62648582,0.00038155,2]
[355459665,1741186244622,-712.62648582,0.00038155,2]
[355459667,1741186244632,-712.62648582,0.00038155,2]
[355459669,1741186244641,-712.62648582,0.00038155,2]
[355459671,1741186244651,-712.62648582,0.00038155,2]
[355459672,1741186244661,-712.62648582,0.00038155,2]
[355459673,1741186244671,-712.62648582,0.00038155,2]
[355459674,1741186244685,-712.62648582,0.00038155,2]
[355459675,1741186244694,-712.62648582,0.00038155,2]
[355459676,1741186244703,-712.62648582,0.00038155,2]
[355459677,1741186244712,-712.62648582,0.00038155,2]
[355459678,1741186244722,-712.62648582,0.00038155,2]
[355459679,1741186244731,-712.62648582,0.00038155,2]
[355459680,1741186244741,-712.62648582,0.00038155,2]
[355459681,1741186244751,-712.62648582,0.00038155,2]
[355459682,1741186244760,-712.62648582,0.00038155,2]
[355459683,1741186244770,-712.62648582,0.00038155,2]
[355459684,1741186244779,-712.62648582,0.00038155,2]
[355459685,1741186244789,-712.62648582,0.00038155,2]
[355459686,1741186244798,-712.62648582,0.00038155,2]
[355459687,1741186244807,-712.62648582,0.00038155,2]
[355459688,1741186244817,-712.62648582,0.00038155,2]
[355459690,1741186244826,-712.62648582,0.00038155,2]
[355459691,1741186244835,-712.62648582,0.00038155,2]
[355459692,1741186244844,-712.62648582,0.00038155,2]
[355459693,1741186244853,-712.62648582,0.00038155,2]
[355459694,1741186244863,-540.59222075,0.00038155,2]
[355459695,1741186244875,-172.03426507,0.00038155,2]
[355459696,1741186244883,-393.42029593,0.00038155,2]
[355459698,1741186244895,-319.20618989,0.00038155,2]
[355459700,1741186244904,-712.62648582,0.00038155,2]
[355459702,1741186244914,-712.62648582,0.00038155,2]
[355459703,1741186244925,-712.62648582,0.00038155,2]
[355459705,1741186244937,-712.62648582,0.00038155,2]
[355459706,1741186244946,-712.62648582,0.00038155,2]
[355459707,1741186244956,-712.62648582,0.00038155,2]
[355459708,1741186244966,-712.62648582,0.00038155,2]
[355459709,1741186244974,-712.62648582,0.00038155,2]
[355459710,1741186244984,-712.62648582,0.00038155,2]
[355459711,1741186244993,-712.62648583,0.00038155,2]
[355459712,1741186245003,-712.62648583,0.00038155,2]
[355459713,1741186245012,-712.62648583,0.00038155,2]
[355459714,1741186245021,-712.62648583,0.00038155,2]
[355459715,1741186245030,-645.64950177,0.00038155,2]
[355459716,1741186245043,-66.97698406,0.00038155,2]
[355459717,1741186245052,-469.1441842,0.00038155,2]
[355459718,1741186245062,-205.57578388,0.00038156,5]
[355459719,1741186245071,-402.49846183,0.00038156,2]
[355459748,1741186246782,-397.0,0.00037904,2]
[355459749,1741186246792,-908.35957615,0.00038156,2]
[355459750,1741186246804,-3309.66742066,0.00038156,2]
[355459751,1741186246816,-3336.80754597,0.00038156,2]
[355459763,1741186246990,-1419.81231565,0.00038156,2]
[355459776,1741186447152,500.0,0.0003,10]
[355459777,1741186471427,500.0,0.0003,10]
[355459778,1741186491951,500.0,0.0003,10]
[355459779,1741186523382,3364.1413628,0.0003,10]
[355459780,1741186570131,500.0,0.0003,10]
[355459781,1741186593142,501.0,0.0003,10]
[355459782,1741186600391,516.6,0.0003,10]
[355459784,1741186635912,500.09,0.0003,10]
[355459787,1741186972739,2000.0,0.0003,15]
[355459788,1741186984685,2000.0,0.0003,15]
[355459792,1741187022038,2000.0,0.0003,15]
[355459798,1741187350138,-500.0,0.00019022,2]
[355459876,1741187432421,-305.39788496,0.000279,2]
[355459878,1741187432431,-2625.63379537,0.000279,2]
[355459880,1741187432441,-300.0,0.00027999,2]
[355459882,1741187432451,-416.66666667,0.00028,3]
[355459884,1741187432459,-416.66666667,0.00028,3]
[355459886,1741187432469,-416.66666667,0.00028,3]
[355459888,1741187432479,-420.0,0.00030239,2]
[355459890,1741187432488,-2000.0,0.000315,15]
[355459892,1741187432497,-2000.0,0.00032,15]
[355459894,1741187432506,-2000.0,0.00032,15]
[355459896,1741187432516,-2000.0,0.000325,15]
[355459898,1741187432526,-327.0,0.00032658,2]
[355459900,1741187432536,-305.39788496,0.000329,2]
[355459903,1741187432545,-466.09600226,0.000329,6]
[355459905,1741187432555,-500.0,0.00033,10]
[355459907,1741187432564,-7795.29964835,0.00034302,2]
[355459947,1741187437946,-544.19992788,0.00034302,2]
[355459948,1741187437958,-5761.44557787,0.00034302,2]
[355459949,1741187437971,-346.884288,0.00034805,120]
[355459950,1741187437980,-500.0,0.0003589,2]
[355459951,1741187437990,-206.41693628,0.00036,2]
[355459952,1741187437999,-267.9950834,0.000362,98]
[355459954,1741187438010,-267.9950834,0.000362,98]
[355459955,1741187438020,-176.97466559,0.00037242,2]
[355459956,1741187438029,-1240.9595654,0.00037246,2]
[355459957,1741187438041,-13778.75544941,0.00037246,2]
[355459958,1741187438051,-173.5387031,0.00037392,4]
[355459959,1741187438061,-305.39788496,0.000379,2]
[355459960,1741187438071,-267.9950834,0.000379,108]
[355459961,1741187438079,-254.038,0.0003792,2]
[355459962,1741187438089,-279.885,0.0003792,2]
[355459963,1741187438099,-375.31534736,0.00037973,2]
[355459964,1741187438109,-732.863996,0.00038036,2]
[355459965,1741187438118,-375.31534733,0.00038044,2]
[355459966,1741187438127,-500.0,0.00038055,2]
[355459967,1741187438137,-500.0,0.00038055,2]
[355459968,1741187438146,-500.0,0.00038055,2]
[355459969,1741187438155,-500.0,0.00038055,2]
[355459970,1741187438167,-500.0,0.00038055,2]
[355459971,1741187438176,-500.0,0.00038055,2]
[355459972,1741187438185,-500.0,0.00038055,2]
[355459973,1741187438194,-500.0,0.00038055,2]
[355459974,1741187438203,-500.0,0.00038055,2]
[355459976,1741187438213,-500.0,0.00038055,2]
[355459977,1741187438222,-500.0,0.00038055,2]
[355459978,1741187438231,-500.0,0.00038055,2]
[355459979,1741187438240,-500.0,0.00038055,2]
[355459980,1741187438250,-500.0,0.00038055,2]
[355459981,1741187438259,-500.0,0.00038055,2]
[355459982,1741187438269,-500.0,0.00038055,2]
[355459983,1741187438279,-500.0,0.00038055,2]
[355459984,1741187438288,-500.0,0.00038055,2]
[355459985,1741187438298,-574.21942384,0.00038055,2]
[355459986,1741187438307,-500.0,0.00038055,2]
[355459987,1741187438317,-500.0,0.00038055,2]
[355459988,1741187438326,-500.0,0.00038055,2]
[355459989,1741187438335,-500.0,0.00038055,2]
[355459990,1741187438345,-500.0,0.00038055,2]
[355459991,1741187438355,-500.0,0.00038055,2]
[355459992,1741187438365,-500.0,0.00038055,2]
[355459993,1741187438375,-513.93945971,0.00038056,5]
[355459994,1741187438385,-864.82889847,0.00038056,5]
[355459995,1741187438395,-222000.0,0.00038056,2]
[355459996,1741187438405,-205.7434331,0.00038073,5]
[355459997,1741187438416,-250.0,0.00038073,5]
[355459998,1741187438426,-500.0,0.00038073,5]
[355459999,1741187438435,-501.99069944,0.00038073,5]
[355460000,1741187438445,-621.5961588,0.00038073,5]
[355460001,1741187438455,-500.0,0.00038073,5]
[355460002,1741187438464,-500.70076274,0.00038073,5]
[355460003,1741187438474,-375.31534733,0.00038115,2]
[355460004,1741187438484,-150.0,0.00038155,2]
[355460005,1741187438494,-1000.0,0.00038155,120]
[355460006,1741187438503,-1000.0,0.00038183,120]
[355460007,1741187438514,-375.31534733,0.00038185,2]
[355460008,1741187438525,-307.04,0.000382,7]
[355460009,1741187438534,-3775.72,0.000382,30]
[355460010,1741187438545,-1000.0,0.0003821,120]
[355460011,1741187438555,-288.129698,0.00038237,14]
[355460012,1741187438565,-151.0,0.00038237,14]
[355460013,1741187438574,-151.0,0.00038237,14]
[355460014,1741187438584,-329.100876,0.00038237,14]
[355460015,1741187438593,-329.100876,0.00038237,14]
[355460016,1741187438603,-1000.0,0.00038237,120]
[355460017,1741187438613,-3000.0,0.00038256,2]
[355460018,1741187438623,-7406.3613554,0.00038256,2]
[355460019,1741187438632,-375.31534733,0.00038256,2]
[355460020,1741187438642,-624.72,0.00038265,120]
[355460021,1741187438651,-151.0,0.000383,14]
[355460022,1741187438661,-244.67285004,0.00038346,3]
[355460023,1741187438674,-179.25152576,0.00038355,15]
[355460024,1741187438683,-613.66149629,0.00038355,15]
[355460025,1741187438693,-500.0,0.00038355,15]
[355460026,1741187438702,-275.11942058,0.00038355,15]
[355460027,1741187438712,-500.0,0.00038355,15]
[355460028,1741187438721,-1000.0,0.00038355,120]
[355460029,1741187438733,-500.0,0.00038356,9]
[355460030,1741187438742,-500.0,0.00038356,9]
[355460031,1741187438752,-500.79356831,0.00038356,9]
[355460032,1741187438761,-510.05550102,0.00038356,9]
[355460033,1741187438780,-499.0,0.00038356,9]
[355460034,1741187438789,-500.0,0.00038356,9]
[355460035,1741187438799,-500.0,0.00038356,9]
[355460036,1741187438808,-500.0,0.00038356,9]
[355460037,1741187438817,-500.0,0.00038356,9]
[355460038,1741187438827,-500.0,0.00038356,90]
[355460039,1741187438837,-500.0,0.00038356,9]
[355460040,1741187438848,-500.0,0.00038356,9]
[355460041,1741187438857,-500.0,0.00038356,9]
[355460042,1741187438867,-521.52,0.00038356,9]
[355460043,1741187438876,-500.0,0.00038356,9]
[355460044,1741187438886,-500.0,0.00038356,9]
[355460045,1741187438896,-500.0,0.00038356,9]
[355460046,1741187438906,-500.0,0.00038356,120]
[355460047,1741187438919,-500.0,0.00038356,9]
[355460048,1741187438928,-500.0,0.00038356,9]
[355460049,1741187438938,-500.0,0.00038356,9]
[355460050,1741187438948,-500.0,0.00038356,9]
[355460051,1741187438958,-500.0,0.00038356,9]
[355460052,1741187438969,-500.0,0.00038356,9]
[355460053,1741187438982,-507.8,0.00038356,9]
[355460054,1741187438992,-500.0,0.00038356,9]
[355460055,1741187439001,-500.0,0.00038356,9]
[355460056,1741187439013,-624.98,0.00038356,9]
[355460057,1741187439023,-624.98,0.00038356,9]
[355460058,1741187439032,-624.98,0.00038356,9]
[355460059,1741187439042,-624.98,0.00038356,9]
[355460060,1741187439052,-624.98,0.00038356,9]
[355460061,1741187439062,-624.98,0.00038356,9]
[355460062,1741187439072,-624.98,0.00038356,9]
[355460063,1741187439082,-624.98,0.00038356,9]
[355460064,1741187439091,-624.98,0.00038356,9]
[355460065,1741187439101,-624.98,0.00038356,9]
[355460066,1741187439111,-624.98,0.00038356,9]
[355460067,1741187439121,-624.98,0.00038356,9]
[355460068,1741187439131,-624.98,0.00038356,9]
[355460069,1741187439140,-624.98,0.00038356,9]
[355460070,1741187439150,-624.98,0.00038356,9]
[355460071,1741187439160,-624.98,0.00038356,9]
[355460072,1741187439174,-624.98,0.00038356,9]
[355460073,1741187439184,-624.98,0.00038356,9]
[355460074,1741187439194,-624.98,0.00038356,9]
[355460075,1741187439204,-624.98,0.00038356,9]
[355460076,1741187439214,-624.98,0.00038356,9]
[355460077,1741187439223,-624.98,0.00038356,9]
[355460078,1741187439233,-624.98,0.00038356,9]
[355460079,1741187439243,-500.0,0.00038356,9]
[355460080,1741187439253,-625.09026416,0.00038356,9]
[355460081,1741187439262,-500.0,0.00038356,9]
[355460082,1741187439272,-548.59,0.00038356,9]
[355460083,1741187439282,-500.0,0.00038356,9]
[355460084,1741187439291,-150.35,0.00038356,9]
[355460085,1741187439301,-500.0,0.00038356,9]
[355460086,1741187439310,-500.0,0.00038356,9]
[355460087,1741187439320,-500.0,0.00038356,9]
[355460088,1741187439329,-500.0,0.00038356,9]
[355460089,1741187439339,-500.0,0.00038356,9]
[355460090,1741187439349,-500.0,0.00038356,9]
[355460091,1741187439359,-500.0,0.00038356,9]
[355460092,1741187439369,-500.0,0.00038356,9]
[355460093,1741187439379,-500.0,0.00038356,9]
[355460094,1741187439388,-500.0,0.00038356,9]
[355460095,1741187439398,-500.0,0.00038356,9]
[355460096,1741187439408,-500.0,0.00038356,9]
[355460097,1741187439419,-511.37662572,0.00038356,9]
[355460098,1741187439428,-500.0,0.00038356,9]
[355460099,1741187439438,-505.12543665,0.00038356,9]
[355460100,1741187439447,-500.0,0.00038356,9]
[355460102,1741187439457,-500.0,0.00038356,9]
[355460103,1741187439466,-500.0,0.00038356,9]
[355460104,1741187439476,-500.0,0.00038356,9]
[355460105,1741187439485,-536.96,0.00038356,9]
[355460106,1741187439495,-500.0,0.00038356,9]
[355460107,1741187439505,-500.0,0.00038356,9]
[355460108,1741187439514,-500.0,0.00038356,9]
[355460109,1741187439524,-500.0,0.00038356,9]
[355460110,1741187439534,-500.0,0.00038356,9]
[355460111,1741187439543,-500.0,0.00038356,9]
[355460112,1741187439553,-500.0,0.00038356,9]
[355460113,1741187439563,-415.9965888,0.00038356,9]
[355460114,1741187439572,-500.0,0.00038356,9]
[355460115,1741187439583,-500.0,0.00038356,9]
[355460116,1741187439592,-500.0,0.00038356,9]
[355460117,1741187439602,-500.0,0.00038356,9]
[355460118,1741187439611,-500.0,0.00038356,9]
[355460119,1741187439620,-500.0,0.00038356,9]
[355460120,1741187439630,-514.02685996,0.00038356,9]
[355460121,1741187439639,-500.0,0.00038356,9]
[355460122,1741187439649,-566.76,0.00038356,9]
[355460123,1741187439658,-500.0,0.00038356,9]
[355460124,1741187439670,-500.0,0.00038356,9]
[355460125,1741187439679,-500.0,0.00038356,9]
[355460126,1741187439689,-500.0,0.00038356,9]
[355460127,1741187439698,-500.0,0.00038356,9]
[355460129,1741187439707,-500.0,0.00038356,9]
[355460132,1741187439717,-504.57057664,0.00038356,9]
[355460133,1741187439726,-500.0,0.00038356,9]
[355460136,1741187439736,-500.0,0.00038356,9]
[355460137,1741187439745,-500.0,0.00038356,9]
[355460139,1741187439754,-500.0,0.00038356,9]
[355460141,1741187439764,-500.0,0.00038356,9]
[355460143,1741187439773,-301.557574,0.00038356,14]
[355460145,1741187439783,-500.0,0.00038356,9]
[355460147,1741187439792,-500.0,0.00038356,9]